fUSD/lending_fUSD_20260203
["ID","MTS","AMOUNT","RATE_DAILY","PERIOD"]
[404440626,1770142668128,-10000.01,7.298e-05,2]
[404440627,1770142668247,-10000.01,7.298e-05,2]
[404440628,1770142668364,-10000.01,7.298e-05,2]
[404440630,1770142674076,-10000.01,7.298e-05,2]
[404440631,1770142674189,-10000.01,7.298e-05,2]
[404440632,1770142674314,-10000.01,7.298e-05,2]
[404440633,1770142674816,-10000.01,7.298e-05,2]
[404440634,1770142674829,-10000.01,7.298e-05,2]
[404440635,1770142674844,-10000.01,7.298e-05,2]
[404440636,1770142674894,-10000.01,7.298e-05,2]
[404440637,1770142680392,-10000.01,7.298e-05,2]
[404440638,1770142680629,-10000.01,7.298e-05,2]
[404440639,1770142680803,-10000.01,7.298e-05,2]
[404440640,1770142684172,-150.0,7.297e-05,2]
[404440641,1770142684250,-9700.01,7.298e-05,2]
[404440642,1770142684327,-10000.01,7.298e-05,2]
[404440643,1770142684472,-10000.01,7.298e-05,2]
[404440644,1770142684611,-10000.01,7.298e-05,2]
[404440645,1770142685394,-10000.01,7.298e-05,2]
[404440646,1770142685419,-10000.01,7.298e-05,2]
[404440647,1770142685440,-10000.01,7.298e-05,2]
[404440654,1770142690332,-10000.01,7.298e-05,2]
[404440655,1770142690426,-10000.01,7.298e-05,2]
[404440656,1770142690591,-10000.01,7.298e-05,2]
[404440657,1770142696437,-300.0,7.297e-05,2]
[404440658,1770142696481,-9400.01,7.298e-05,2]
[404440659,1770142697627,-10000.01,7.298e-05,2]
[404440660,1770142697756,-10000.01,7.298e-05,2]
[404440661,1770142697876,-10000.01,7.298e-05,2]
[404440662,1770142698006,-10000.01,7.298e-05,2]
[404440663,1770142698114,-10000.01,7.298e-05,2]
[404440664,1770142698230,-10000.01,7.298e-05,2]
[404440666,1770142703455,-10000.01,7.298e-05,2]
[404440667,1770142703567,-10000.01,7.298e-05,2]
[404440668,1770142703675,-10000.01,7.298e-05,2]
[404440672,1770142710083,-1200.0,7.297e-05,2]
[404440673,1770142710178,-7600.01,7.298e-05,2]
[404440674,1770142710231,-10000.01,7.298e-05,2]
[404440675,1770142710306,-10000.01,7.298e-05,2]
[404440676,1770142710427,-10000.01,7.298e-05,2]
[404440677,1770142710550,-10000.01,7.298e-05,2]
[404440678,1770142710663,-10000.01,7.298e-05,2]
[404440679,1770142710785,-10000.01,7.298e-05,2]
[404440680,1770142713840,-10000.01,7.298e-05,2]
[404440681,1770142714064,-10000.01,7.298e-05,2]
[404440682,1770142714207,-10000.01,7.298e-05,2]
[404440683,1770142720654,-10000.01,7.298e-05,2]
[404440684,1770142720766,-10000.01,7.298e-05,2]
[404440685,1770142720906,-10000.01,7.298e-05,2]
[404440686,1770142721032,-10000.01,7.298e-05,2]
[404440687,1770142721200,-10000.01,7.298e-05,2]
[404440688,1770142721333,-10000.01,7.298e-05,2]
[404440689,1770142721481,-10000.01,7.298e-05,2]
[404440690,1770142727222,-10000.01,7.298e-05,2]
[404440691,1770142727412,-10000.01,7.298e-05,2]
[404440692,1770142727544,-10000.01,7.298e-05,2]
[404440694,1770142733563,-10000.01,7.298e-05,2]
[404440695,1770142733676,-10000.01,7.298e-05,2]
[404440696,1770142733803,-10000.01,7.298e-05,2]
[404440697,1770142733915,-10000.01,7.298e-05,2]
[404440698,1770142734030,-10000.01,7.298e-05,2]
[404440699,1770142734235,-10000.01,7.298e-05,2]
[404440700,1770142734374,-10000.01,7.298e-05,2]
[404440701,1770142740680,-10000.01,7.298e-05,2]
[404440702,1770142740926,-10000.01,7.298e-05,2]
[404440703,1770142741068,-10000.01,7.298e-05,2]
[404440712,1770142747022,-300.0,7.297e-05,2]
[404440713,1770142747405,-9400.01,7.298e-05,2]
[404440714,1770142747520,-10000.01,7.298e-05,2]
[404440715,1770142747542,-10000.01,7.298e-05,2]
[404440716,1770142747559,-10000.01,7.298e-05,2]
[404440717,1770142747573,-10000.01,7.298e-05,2]
[404440718,1770142747608,-10000.01,7.298e-05,2]
[404440719,1770142747716,-10000.01,7.298e-05,2]
[404440721,1770142753370,-10000.01,7.298e-05,2]
[404440723,1770142753529,-10000.01,7.298e-05,2]
[404440724,1770142753652,-10000.01,7.298e-05,2]
[404440737,1770142760535,-10000.01,7.298e-05,2]
[404440738,1770142761337,-10000.01,7.298e-05,2]
[404440739,1770142761373,-10000.01,7.298e-05,2]
[404440740,1770142761407,-10000.01,7.298e-05,2]
[404440741,1770142761671,-10000.01,7.298e-05,2]
[404440742,1770142761790,-10000.01,7.298e-05,2]
[404440743,1770142761921,-10000.01,7.298e-05,2]
[404440744,1770142765911,-10000.01,7.298e-05,2]
[404440745,1770142766254,-10000.01,7.298e-05,2]
[404440746,1770142766388,-10000.01,7.298e-05,2]
[404440758,1770142772372,-10000.01,7.298e-05,2]
[404440759,1770142772577,-10000.01,7.298e-05,2]
[404440760,1770142772755,-10000.01,7.298e-05,2]
[404440761,1770142772900,-10000.01,7.298e-05,2]
[404440762,1770142773073,-10000.01,7.298e-05,2]
[404440763,1770142773317,-10000.01,7.298e-05,2]
[404440764,1770142773451,-10000.01,7.298e-05,2]
[404440766,1770142778855,-10000.01,7.298e-05,2]
[404440767,1770142778901,-10000.01,7.298e-05,2]
[404440768,1770142778927,-10000.01,7.298e-05,2]
[404440769,1770142784032,-10000.01,7.298e-05,2]
[404440771,1770142784257,-10000.01,7.298e-05,2]
[404440772,1770142784370,-10000.01,7.298e-05,2]
[404440773,1770142784490,-10000.01,7.298e-05,2]
[404440774,1770142784604,-10000.01,7.298e-05,2]
[404440775,1770142784717,-10000.01,7.298e-05,2]
[404440776,1770142784867,-10000.01,7.298e-05,2]
[404440778,1770142789722,-10000.01,7.298e-05,2]
[404440779,1770142789833,-10000.01,7.298e-05,2]
[404440780,1770142789974,-10000.01,7.298e-05,2]
[404440781,1770142793641,-10000.01,7.298e-05,2]
[404440782,1770142793881,-10000.01,7.298e-05,2]
[404440783,1770142794011,-10000.01,7.298e-05,2]
[404440784,1770142794208,-10000.01,7.298e-05,2]
[404440785,1770142794535,-10000.01,7.298e-05,2]
[404440786,1770142794659,-10000.01,7.298e-05,2]
[404440787,1770142794779,-10000.01,7.298e-05,2]
[404440789,1770142800272,-10000.01,7.298e-05,2]
[404440790,1770142800411,-10000.01,7.298e-05,2]
[404440791,1770142803953,-1200.0,7.297e-05,2]
[404440792,1770142803982,-260.0,7.297e-05,2]
[404440793,1770142804013,-300.0,7.297e-05,2]
[404440794,1770142804042,-300.0,7.297e-05,2]
[404440795,1770142804139,-5880.01,7.298e-05,2]
[404440796,1770142804159,-10000.01,7.298e-05,2]
[404440797,1770142804189,-10000.01,7.298e-05,2]
[404440798,1770142804296,-10000.01,7.298e-05,2]
[404440799,1770142804432,-10000.01,7.298e-05,2]
[404440800,1770142804546,-10000.01,7.298e-05,2]
[404440801,1770142804678,-10000.01,7.298e-05,2]
[404440802,1770142804787,-10000.01,7.298e-05,2]
[404440810,1770142812100,-10000.01,7.298e-05,2]
[404440811,1770142812781,-10000.01,7.298e-05,2]
[404440812,1770142828262,-10000.01,7.298e-05,2]
[404440813,1770142835105,10000.01,7.198e-05,2]
[404440814,1770142835134,10000.01,7.198e-05,2]
[404440815,1770142835164,10000.01,7.198e-05,2]
[404440816,1770142835196,10000.01,7.198e-05,2]
[404440817,1770142835224,10000.01,7.198e-05,2]
[404440818,1770142835252,10000.01,7.198e-05,2]
[404440819,1770142835280,10000.01,7.198e-05,2]
[404440820,1770142843717,-10000.01,7.198e-05,2]
[404440821,1770142843821,-10000.01,7.198e-05,2]
[404440822,1770142843933,-10000.01,7.198e-05,2]
[404440823,1770142844061,-10000.01,7.198e-05,2]
[404440824,1770142844216,-10000.01,7.198e-05,2]
[404440825,1770142849497,-10000.01,7.198e-05,2]
[404440826,1770142849692,-10000.01,7.198e-05,2]
[404440827,1770142849834,-10000.01,7.198e-05,2]
[404440828,1770142849995,-10000.01,7.198e-05,2]
[404440829,1770142850155,-10000.01,7.198e-05,2]
[404440830,1770142856208,-10000.01,7.198e-05,2]
[404440831,1770142856326,-10000.01,7.198e-05,2]
[404440832,1770142856421,-10000.01,7.198e-05,2]
[404440833,1770142856562,-10000.01,7.198e-05,2]
[404440834,1770142856670,-10000.01,7.198e-05,2]
[404440835,1770142862770,-300.0,7.197e-05,2]
[404440836,1770142862799,-150.0,7.197e-05,2]
[404440839,1770142862877,-9100.01,7.198e-05,2]
[404440841,1770142863056,-10000.01,7.198e-05,2]
[404440851,1770142863301,-10000.01,7.198e-05,2]
[404440857,1770142863456,-10000.01,7.198e-05,2]
[404440859,1770142863646,-10000.01,7.198e-05,2]
[404440860,1770142868963,-300.0,7.197e-05,2]
[404440861,1770142869345,-9400.01,7.198e-05,2]
[404440862,1770142869395,-10000.01,7.198e-05,2]
[404440863,1770142869426,-10000.01,7.198e-05,2]
[404440864,1770142869519,-10000.01,7.198e-05,2]
[404440865,1770142875040,-10000.01,7.198e-05,2]
[404440866,1770142875187,-10000.01,7.198e-05,2]
[404440867,1770142875343,-10000.01,7.198e-05,2]
[404440868,1770142875657,-10000.01,7.198e-05,2]
[404440869,1770142875785,-10000.01,7.198e-05,2]
[404440910,1770142888964,-10000.01,7.198e-05,2]
[404440915,1770142889337,-10000.01,7.198e-05,2]
[404440916,1770142889686,-10000.01,7.198e-05,2]
[404440917,1770142890240,-10000.01,7.198e-05,2]
[404440918,1770142890457,-10000.01,7.198e-05,2]
[404440919,1770142913623,-836.645,7.054e-05,2]
[404440920,1770142913754,-1593.057,7.054e-05,2]
[404440921,1770142913876,-200.0,6.7e-05,2]
[404440922,1770142913887,-6533.663,7.054e-05,2]
[404440923,1770142913910,-280.233,7.054e-05,2]
[404440924,1770142913922,-8126.72,7.198e-05,2]
[404440925,1770142913963,-10000.01,7.198e-05,2]
[404440926,1770142913981,-10000.01,7.198e-05,2]
[404440927,1770142922130,-400.0,6.8e-05,2]
[404440928,1770142922162,-600.0,6.9e-05,2]
[404440929,1770142922207,-900.0,7e-05,2]
[404440930,1770142922239,-300.0,7.197e-05,2]
[404440931,1770142922337,-5600.01,7.198e-05,2]
[404440932,1770142922381,-10000.01,7.198e-05,2]
[404440933,1770142922408,-10000.01,7.198e-05,2]
[404440934,1770142922513,-10000.01,7.198e-05,2]
[404440935,1770142922621,-10000.01,7.198e-05,2]
[404440936,1770142922739,-10000.01,7.198e-05,2]
[404440946,1770142928931,-10000.01,7.198e-05,2]
[404440947,1770142929134,-10000.01,7.198e-05,2]
[404440948,1770142929352,-10000.01,7.198e-05,2]
[404440949,1770142929470,-10000.01,7.198e-05,2]
[404440950,1770142937642,-1000.0,7.197e-05,2]
[404440951,1770142937705,-8000.01,7.198e-05,2]
[404440952,1770142937737,-10000.01,7.198e-05,2]
[404440953,1770142937877,-10000.01,7.198e-05,2]
[404440954,1770142938018,-10000.01,7.198e-05,2]
[404440955,1770142938139,-10000.01,7.198e-05,2]
[404440956,1770142947471,-10000.01,7.198e-05,2]
[404440957,1770142947592,-10000.01,7.198e-05,2]
[404440958,1770142947729,-10000.01,7.198e-05,2]
[404440959,1770142947876,-10000.01,7.198e-05,2]
[404440960,1770142948002,-10000.01,7.198e-05,2]
[404440961,1770142957193,-1227.41463026,7.197e-05,2]
[404440962,1770142957221,-1227.41463026,7.197e-05,2]
[404440963,1770142957249,-1227.41463026,7.197e-05,2]
[404440964,1770142957318,-2635.52221844,7.198e-05,2]
[404440965,1770142957424,-10000.01,7.198e-05,2]
[404440966,1770142957550,-10000.01,7.198e-05,2]
[404440967,1770142967050,-10000.01,7.198e-05,2]
[404440968,1770142967171,-10000.01,7.198e-05,2]
[404440969,1770142967279,-10000.01,7.198e-05,2]
[404440970,1770142967387,-10000.01,7.198e-05,2]
[404440971,1770142967500,-10000.01,7.198e-05,2]
[404440972,1770142970227,-10000.01,7.198e-05,2]
[404440973,1770142970626,-10000.01,7.198e-05,2]
[404440974,1770142970640,-10000.01,7.198e-05,2]
[404440975,1770142977046,8609.0,1.18e-05,2]
[404441401,1770143431323,-343.26835056,6.6e-05,2]
[404441403,1770143431337,-287.04410206,6.6e-05,2]
[404441409,1770143431384,-169.68754738,6.6e-05,2]
[404441411,1770143431395,-207.0,6.6e-05,2]
[404441413,1770143431405,-165.9367915,6.7e-05,2]
[404441414,1770143431418,-1434.0632085,6.7e-05,2]
[404441415,1770143431427,-1069.91177024,6.7e-05,2]
[404441416,1770143431438,-471.38276676,6.799e-05,2]
[404441417,1770143431449,-728.61723324,6.799e-05,2]
[404441419,1770143431459,-300.0,6.799e-05,2]
[404441430,1770143431468,-2400.0,6.8e-05,2]
[404441431,1770143431755,-300.0,6.898e-05,2]
[404441432,1770143431765,-300.0,6.898e-05,2]
[404441433,1770143431775,-1200.0,6.899e-05,2]
[404441434,1770143431785,-1510.58276676,6.9e-05,2]
[404441437,1770143431804,-523.0,6.9e-05,2]
[404441439,1770143431816,-1166.41723324,6.9e-05,2]
[404441441,1770143431826,-1474.3667905,7e-05,2]
[404441443,1770143431837,-396.09815507,7e-05,2]
[404441445,1770143431851,-2129.53505443,7e-05,2]
[404441446,1770143431860,-95.12681309,7.087e-05,2]
[404441447,1770143431872,-54.87318691,7.087e-05,2]
[404441448,1770143431883,-1556.94190912,7.088e-05,2]
[404441449,1770143431910,-2073.2599778,7.088e-05,2]
[404441450,1770143431923,-1078.1,7.088e-05,2]
[404441452,1770143431935,-55340.01666446,7.088e-05,2]
[404441454,1770143431944,-151.0,7.095e-05,2]
[404441457,1770143431953,-151.0,7.095e-05,2]
[404441458,1770143431963,-500.0,7.096e-05,2]
[404441460,1770143431972,-500.0,7.096e-05,2]
[404441462,1770143431988,-598.9160451,7.096e-05,2]
[404441464,1770143431998,-620.38896406,7.096e-05,2]
[404441465,1770143432008,-505.78336998,7.096e-05,2]
[404441466,1770143432017,-356.2518431,7.096e-05,2]
[404441467,1770143432027,-500.0,7.096e-05,2]
[404441468,1770143432036,-500.0,7.096e-05,2]
[404441469,1770143432046,-500.0,7.096e-05,2]
[404441470,1770143432055,-2400.51063215,7.096e-05,2]
[404441471,1770143432065,-500.0,7.096e-05,2]
[404441472,1770143432075,-500.0,7.096e-05,2]
[404441473,1770143432084,-508.7521401,7.096e-05,2]
[404441474,1770143432093,-2400.51063215,7.096e-05,2]
[404441475,1770143432102,-500.0,7.096e-05,2]
[404441476,1770143432111,-2400.51063215,7.096e-05,2]
[404441477,1770143432122,-261.41761606,7.096e-05,2]
[404441478,1770143432132,-500.0,7.096e-05,2]
[404441479,1770143432142,-2400.51063215,7.096e-05,2]
[404441480,1770143432151,-500.0,7.096e-05,2]
[404441481,1770143432161,-2400.51063215,7.096e-05,2]
[404441482,1770143432171,-496.86287992,7.096e-05,2]
[404441483,1770143432180,-2400.51063215,7.096e-05,2]
[404441484,1770143432190,-2400.51063215,7.096e-05,2]
[404441485,1770143432199,-2400.51063215,7.096e-05,2]
[404441486,1770143432208,-2400.51063215,7.096e-05,2]
[404441487,1770143432217,-2400.51063215,7.096e-05,2]
[404441488,1770143432226,-2400.51063215,7.096e-05,2]
[404441489,1770143432241,-2400.51063215,7.096e-05,2]
[404441490,1770143432250,-2400.51063215,7.096e-05,2]
[404441491,1770143432261,-2400.51063215,7.096e-05,2]
[404441492,1770143432273,-2400.51063215,7.096e-05,2]
[404441493,1770143432283,-2400.51063215,7.096e-05,2]
[404441494,1770143432292,-2400.51063215,7.096e-05,2]
[404441495,1770143432302,-2400.51063215,7.096e-05,2]
[404441496,1770143432311,-2400.51063215,7.096e-05,2]
[404441497,1770143432321,-2400.51063215,7.096e-05,2]
[404441498,1770143432330,-2400.51063215,7.096e-05,2]
[404441499,1770143432340,-2400.51063215,7.096e-05,2]
[404441500,1770143432350,-2400.51063215,7.096e-05,2]
[404441501,1770143432359,-2400.51063215,7.096e-05,2]
[404441502,1770143432369,-2400.51063215,7.096e-05,2]
[404441503,1770143432378,-2400.51063215,7.096e-05,2]
[404441504,1770143432387,-2400.51063215,7.096e-05,2]
[404441505,1770143432397,-2400.51063215,7.096e-05,2]
[404441506,1770143432406,-2400.51063215,7.096e-05,2]
[404441507,1770143432415,-2400.51063215,7.096e-05,2]
[404441508,1770143432425,-2400.51063215,7.096e-05,2]
[404441509,1770143432434,-2400.51063215,7.096e-05,2]
[404441510,1770143432444,-2400.51063215,7.096e-05,2]
[404441511,1770143432453,-2400.51063215,7.096e-05,2]
[404441512,1770143432462,-2400.51063215,7.096e-05,2]
[404441513,1770143432471,-2400.51063215,7.096e-05,2]
[404441514,1770143432484,-2400.51063215,7.096e-05,2]
[404441515,1770143432494,-2400.51063215,7.096e-05,2]
[404441516,1770143432503,-2400.51063215,7.096e-05,2]
[404441517,1770143432512,-2400.51063215,7.096e-05,2]
[404441518,1770143432521,-2400.51063215,7.096e-05,2]
[404441519,1770143432531,-2400.51063215,7.096e-05,2]
[404441520,1770143432540,-2400.51063215,7.096e-05,2]
[404441521,1770143432550,-2400.51063215,7.096e-05,2]
[404441522,1770143432560,-2400.51063215,7.096e-05,2]
[404441523,1770143432570,-2400.51063215,7.096e-05,2]
[404441524,1770143432580,-2400.51063215,7.096e-05,2]
[404441525,1770143432589,-2400.51063215,7.096e-05,2]
[404441526,1770143432599,-2400.51063215,7.096e-05,2]
[404441527,1770143432608,-2400.51063215,7.096e-05,2]
[404441528,1770143432618,-2400.51063215,7.096e-05,2]
[404441529,1770143432628,-2400.51063215,7.096e-05,2]
[404441530,1770143432639,-2400.51063215,7.096e-05,2]
[404441531,1770143432649,-2400.51063215,7.096e-05,2]
[404441532,1770143432659,-2400.51063215,7.096e-05,2]
[404441533,1770143432668,-2400.51063215,7.096e-05,2]
[404441534,1770143432678,-2400.51063215,7.096e-05,2]
[404441535,1770143432688,-2400.51063215,7.096e-05,2]
[404441536,1770143432698,-2400.51063215,7.096e-05,2]
[404441537,1770143432708,-2400.51063215,7.096e-05,2]
[404441538,1770143432718,-2400.51063215,7.096e-05,2]
[404441539,1770143432728,-2400.51063215,7.096e-05,2]
[404441540,1770143432741,-2400.51063215,7.096e-05,2]
[404441541,1770143432756,-500.0,7.096e-05,2]
[404441542,1770143432766,-500.0,7.096e-05,2]
[404441543,1770143432776,-500.0,7.096e-05,2]
[404441544,1770143432785,-500.0,7.096e-05,2]
[404441545,1770143432795,-500.0,7.096e-05,2]
[404441546,1770143432804,-500.0,7.096e-05,2]
[404441547,1770143432814,-500.0,7.096e-05,2]
[404441548,1770143432823,-628.32236755,7.096e-05,2]
[404441549,1770143432833,-500.0,7.096e-05,2]
[404441550,1770143432842,-6821.45104633,7.096e-05,2]
[404441551,1770143432852,-6821.45104633,7.096e-05,2]
[404441552,1770143432861,-6821.45104633,7.096e-05,2]
[404441553,1770143432871,-6821.45104633,7.096e-05,2]
[404441554,1770143432880,-6821.45104633,7.096e-05,2]
[404441555,1770143432890,-6821.45104633,7.096e-05,2]
[404441556,1770143432900,-6821.45104633,7.096e-05,2]
[404441557,1770143432909,-6821.45104633,7.096e-05,2]
[404441558,1770143432918,-6821.45104633,7.096e-05,2]
[404441559,1770143432928,-6821.45104633,7.096e-05,2]
[404441560,1770143432938,-6821.45104633,7.096e-05,2]
[404441561,1770143432948,-6821.45104633,7.096e-05,2]
[404441562,1770143432958,-6821.45104633,7.096e-05,2]
[404441563,1770143432969,-6821.45104633,7.096e-05,2]
[404441564,1770143432982,-6821.45104633,7.096e-05,2]
[404441565,1770143432993,-6821.45104633,7.096e-05,2]
[404441566,1770143433003,-6821.45104633,7.096e-05,2]
[404441567,1770143433013,-6821.45104633,7.096e-05,2]
[404441568,1770143433022,-6821.45104633,7.096e-05,2]
[404441569,1770143433033,-6821.45104633,7.096e-05,2]
[404441570,1770143433043,-6821.45104633,7.096e-05,2]
[404441571,1770143433054,-6821.45104633,7.096e-05,2]
[404441572,1770143433064,-6821.45104633,7.096e-05,2]
[404441573,1770143433073,-801.52403966,7.096e-05,2]
[404441574,1770143433095,-385.94724604,7.096e-05,2]
[404441575,1770143433107,-563.5703304,7.096e-05,2]
[404441576,1770143433120,-728.5480015,7.096e-05,2]
[404441577,1770143433141,-1701.61006015,7.096e-05,2]
[404441581,1770143437409,-439.44633751,7.096e-05,2]
[404441582,1770143437422,-1695.30567479,7.096e-05,2]
[404441583,1770143437523,-296.53689903,7.096e-05,2]
[404441584,1770143437534,-208.96245725,7.096e-05,2]
[404441585,1770143437544,-2884.78754252,7.096e-05,2]
[404441586,1770143437555,-3936.66350381,7.096e-05,2]
[404441587,1770143437565,-6821.45104633,7.096e-05,2]
[404441588,1770143437575,-6821.45104633,7.096e-05,2]
[404441589,1770143437584,-7874.30407594,7.098e-05,2]
[404441590,1770143437594,-4046.15648441,7.098e-05,2]
[404441591,1770143437605,-424.06072804,7.098e-05,2]
[404441592,1770143437618,-15525.07183968,7.098e-05,2]
[404441593,1770143437630,-1698518.9590896,7.098e-05,2]
[404441637,1770143439467,-1862.5,7.098e-05,2]
[404441638,1770143439479,-512.27802841,7.098e-05,2]
[404441639,1770143439492,-748.2,7.098e-05,2]
[404441640,1770143439523,-1432.3125644,7.098e-05,2]
[404441641,1770143439534,-14960.00000001,7.098e-05,2]
[404441642,1770143439546,-569.7664205,7.098e-05,2]
[404441643,1770143439656,-2348.70753352,7.098e-05,2]
[404441644,1770143439667,-472.20805809,7.098e-05,2]
[404441645,1770143439680,-4716.11120002,7.098e-05,2]
[404441646,1770143439801,-1169.5132345,7.098e-05,2]
[404441647,1770143439907,-351.13596055,7.098e-05,2]
[404441648,1770143439919,-497.813004,7.098e-05,2]
[404441649,1770143439931,-1751845.20585427,7.098e-05,2]
[404441650,1770143439940,-233.4463559,7.099e-05,2]
[404441651,1770143439949,-1348.01360577,7.099e-05,2]
[404441652,1770143439958,-186.26,7.1e-05,2]
[404441654,1770143439967,-2791.97235582,7.129e-05,2]
[404441655,1770143439977,-7368.05922032,7.129e-05,2]
[404441656,1770143439989,-12998.12982861,7.129e-05,2]
[404441657,1770143439998,-256.43,7.196e-05,2]
[404441658,1770143440007,-4322.36992004,7.198e-05,2]
[404441660,1770143440017,-2383.66746625,7.198e-05,2]
[404441662,1770143440026,-1545.19073938,7.198e-05,2]
[404441664,1770143440036,-1338.10693468,7.198e-05,2]
[404441665,1770143440046,-250.0,7.26e-05,2]
[404441666,1770143440055,-250.0,7.26e-05,2]
[404441667,1770143440064,-1000.0,7.298e-05,2]
[404441668,1770143440322,-215.41950212,7.298e-05,2]
[404441669,1770143440332,-310.44,7.3e-05,2]
[404441670,1770143440342,-256.43,7.47e-05,2]
[404441671,1770143440351,-200.0,7.473e-05,2]
[404441672,1770143440364,-1680.0,7.479e-05,2]
[404441673,1770143440374,-420.0,7.479e-05,2]
[404441674,1770143440383,-382.0,7.588e-05,2]
[404441675,1770143440392,-1680.0,7.589e-05,2]
[404441676,1770143440402,-256.43,7.744e-05,2]
[404441677,1770143440411,-255.0,7.795e-05,2]
[404441678,1770143440421,-250.0,7.797e-05,2]
[404441679,1770143440430,-392.09110182,7.888e-05,2]
[404441680,1770143440439,-299.99,7.916e-05,2]
[404441681,1770143440448,-9999.99,7.916e-05,2]
[404441682,1770143440458,-9999.99,7.918e-05,2]
[404441683,1770143440467,-735.95,7.918e-05,2]
[404441684,1770143440475,-150.99,7.918e-05,2]
[404441685,1770143440486,-150.99,7.918e-05,2]
[404441686,1770143440495,-14685.41905029,8e-05,2]
[404441687,1770143440504,-256.43,8.018e-05,2]
[404441688,1770143440513,-9999.99,8.028e-05,2]
[404441689,1770143440524,-999.99,8.028e-05,2]
[404441690,1770143440533,-1966.102901,8.178e-05,2]
[404441691,1770143440542,-500.0,8.219e-05,2]
[404441692,1770143440552,-500.0,8.219e-05,2]
[404441693,1770143440561,-500.0,8.219e-05,2]
[404441694,1770143440570,-517.93238899,8.219e-05,2]
[404441695,1770143440580,-500.0,8.219e-05,2]
[404441696,1770143440589,-500.0,8.219e-05,2]
[404441697,1770143440598,-500.0,8.219e-05,2]
[404441698,1770143440607,-500.0,8.219e-05,2]
[404441699,1770143440616,-500.0,8.219e-05,2]
[404441700,1770143440626,-500.0,8.219e-05,2]
[404441701,1770143440636,-500.0,8.219e-05,2]
[404441702,1770143440647,-550.0,8.219e-05,2]
[404441703,1770143440658,-500.0,8.219e-05,2]
[404441704,1770143440670,-2351.0,8.227e-05,2]
[404441705,1770143440680,-587.0,8.227e-05,2]
[404441706,1770143440689,-256.43,8.292e-05,2]
[404441707,1770143440698,-720.0,8.348e-05,2]
[404441708,1770143440708,-720.83,8.387e-05,2]
[404441709,1770143440717,-500.0,8.493e-05,2]
[404441710,1770143440726,-256.43,8.566e-05,2]
[404441711,1770143440736,-433.0,8.575e-05,2]
[404441712,1770143440750,-250.0,8.721e-05,2]
[404441713,1770143440759,-500.0,8.767e-05,2]
[404441714,1770143440769,-19655.0,8.806e-05,2]
[404441715,1770143440780,-256.43,8.84e-05,2]
[404441716,1770143440789,-248.18,8.9e-05,2]
[404441717,1770143440799,-1830.15,9e-05,2]
[404441718,1770143440808,-500.0,9.041e-05,2]
[404441719,1770143440817,-3292.0,9.049e-05,2]
[404441720,1770143440826,-823.0,9.049e-05,2]
[404441721,1770143440836,-256.43,9.114e-05,2]
[404441722,1770143440845,-500.0,9.315e-05,2]
[404441723,1770143440854,-256.43,9.388e-05,2]
[404441724,1770143440863,-736.0,9.433e-05,2]
[404441725,1770143440872,-500.0,9.589e-05,2]
[404441726,1770143440881,-256.43,9.662e-05,2]
[404441727,1770143440891,-205.0,9.8e-05,2]
[404441728,1770143440901,-500.0,9.863e-05,2]
[404441729,1770143440910,-256.43,9.936e-05,2]
[404441730,1770143440919,-4423.0,9.954e-05,2]
[404441731,1770143440929,-1152.0,9.954e-05,2]
[404441732,1770143440938,-1600.0,9.965e-05,2]
[404441733,1770143440947,-500.0,9.973e-05,2]
[404441734,1770143440956,-158.11278046,0.0001,2]
[404441735,1770143440966,-151.0,0.0001,2]
[404441736,1770143440975,-151.0,0.0001,2]
[404441737,1770143440986,-151.0,0.0001,2]
[404441738,1770143440996,-151.0,0.0001,2]
[404441739,1770143441007,-151.0,0.0001,2]
[404441740,1770143441017,-151.0,0.0001,2]
[404441741,1770143441028,-151.0,0.0001,2]
[404441742,1770143441038,-151.0,0.0001,2]
[404441743,1770143441048,-151.0,0.0001,2]
[404441744,1770143441057,-151.0,0.0001,2]
[404441745,1770143441067,-151.0,0.0001,2]
[404441746,1770143441076,-151.0,0.0001,2]
[404441747,1770143441085,-151.0,0.0001,2]
[404441748,1770143441095,-151.0,0.0001,2]
[404441749,1770143441104,-151.0,0.0001,2]
[404441750,1770143441115,-151.0,0.0001,2]
[404441751,1770143441125,-151.0,0.0001,2]
[404441752,1770143441134,-151.0,0.0001,2]
[404441753,1770143441147,-151.0,0.0001,2]
[404441754,1770143441157,-151.0,0.0001,2]
[404441755,1770143441166,-200.0,0.0001,2]
[404441756,1770143441176,-500.0,0.0001,2]
[404441757,1770143441186,-500.0,0.0001,2]
[404441758,1770143441195,-500.0,0.0001,2]
[404441759,1770143441204,-500.0,0.0001,2]